bitfinex/quotes_BTCUSD_20250406
["timestamp","ask_amount","ask_price","bid_price","bid_amount"]
[1743973236311,0.12607305,78875.0,78855.0,0.0453]
[1743973236457,0.12607305,78875.0,78856.0,0.26816685]
[1743973236655,0.12607305,78875.0,78864.0,0.2536]
[1743973237018,0.00316988,78874.0,78862.0,0.01454085]
[1743973237204,0.12290297,78874.0,78851.0,0.01454085]
[1743973237406,0.15,78864.0,78843.0,0.0453]
[1743973237542,0.15,78864.0,78835.0,0.4132]
[1743973237543,0.12607355,78863.0,78835.0,0.4132]
[1743973237741,0.15,78853.0,78834.0,0.01275453]
[1743973238005,0.35983419,78852.0,78834.0,0.01275453]
[1743973238177,0.21876,78852.0,78841.0,0.012683]
[1743973238378,0.21876,78852.0,78851.0,0.03122285]
[1743973238597,0.21872,78871.0,78862.0,0.02722085]
[1743973238774,0.22189005,78871.0,78863.0,0.253604]
[1743973238979,0.21872,78871.0,78864.0,0.01268]
[1743973239177,0.21872,78871.0,78865.0,0.01454085]
[1743973239521,0.21872,78871.0,78867.0,0.01454085]
[1743973239723,0.00316983,78870.0,78867.0,0.01454085]
[1743973240049,0.21872,78871.0,78863.0,0.01454085]
[1743973240164,0.21872,78871.0,78869.0,0.012679]
[1743973240370,0.21872,78871.0,78867.0,0.01454085]
[1743973241151,0.21872,78871.0,78846.0,0.298858]
[1743973241152,0.001,78870.0,78846.0,0.298858]
[1743973241377,0.00317015,78869.0,78855.0,0.01454085]
[1743973241589,0.12607312,78869.0,78856.0,0.02722185]
[1743973241791,0.12607312,78869.0,78858.0,0.01454085]
[1743973242248,0.12290297,78868.0,78854.0,0.004]
[1743973242464,0.15,78862.0,78854.0,0.004]
[1743973242670,0.12607366,78861.0,78854.0,0.004]
[1743973242857,0.02760737,78860.0,78854.0,0.004]
[1743973243054,0.12607366,78859.0,78854.0,0.004]
[1743973243479,0.34,78870.0,78855.0,0.25363]
[1743973243680,0.34467326,78869.0,78865.0,0.266276]
[1743973243882,0.2186,78870.0,78866.0,0.012679]
[1743973244084,0.00316993,78869.0,78863.0,0.01454085]
[1743973244278,0.00316999,78870.0,78855.0,0.02722185]
[1743973244504,0.00316999,78870.0,78830.0,0.507417]
[1743973244505,0.15,78866.0,78858.0,0.003]
[1743973244681,0.12607343,78865.0,78858.0,0.003]
[1743973244895,0.12607343,78865.0,78851.0,0.012682]
[1743973245115,0.2186,78871.0,78859.0,0.01268]
[1743973245395,0.001,78869.0,78858.0,0.01454085]
[1743973245596,0.001,78869.0,78865.0,0.012679]
[1743973245802,0.21856,78870.0,78863.0,0.01454085]
[1743973246002,0.21856,78870.0,78865.0,0.01454085]
[1743973246473,0.00316991,78869.0,78863.0,0.01454085]
[1743973246982,0.00316991,78869.0,78861.0,0.01454085]
[1743973247185,0.21856,78870.0,78865.0,0.01454085]
[1743973247527,0.00316991,78869.0,78862.0,0.01454085]
[1743973247745,0.00013647,78876.0,78875.0,0.266243]
[1743973248091,0.00013647,78876.0,78875.0,0.62078385]
[1743973248844,0.00013647,78876.0,78875.0,0.01454085]
[1743973249071,0.00013647,78876.0,78864.0,0.01454085]
[1743973249232,0.00013647,78876.0,78875.0,0.002]
[1743973249435,0.12303944,78876.0,78875.0,0.002]
[1743973249639,0.17886884,78876.0,78875.0,0.002]
[1743973250317,0.1262099,78876.0,78875.0,0.002]
[1743973250456,0.12303944,78876.0,78875.0,0.002]
[1743973250803,0.00013647,78876.0,78875.0,0.014678]
[1743973250960,0.00013647,78876.0,78875.0,0.002]
[1743973251158,0.00113647,78876.0,78875.0,0.012678]
[1743973251360,0.00113647,78876.0,78875.0,0.28378385]
[1743973251563,0.00013647,78876.0,78875.0,0.03021885]
[1743973251838,0.00013647,78876.0,78875.0,0.02721885]
[1743973251996,0.00713647,78876.0,78875.0,0.02721885]
[1743973252399,0.00313647,78876.0,78875.0,0.07411885]
[1743973252789,0.00313647,78876.0,78875.0,0.41611885]
[1743973252972,0.00313647,78876.0,78875.0,0.50467394]
[1743973253180,0.00313647,78876.0,78875.0,0.62757691]
[1743973253383,0.0003348,78898.0,78897.0,0.28070985]
[1743973253627,0.0003348,78898.0,78897.0,0.74041282]
[1743973253808,0.0003348,78898.0,78897.0,0.78552606]
[1743973254508,0.0003348,78898.0,78897.0,0.83242606]
[1743973254887,0.0003346,78908.0,78907.0,0.01454085]
[1743973255086,0.0003346,78931.0,78924.0,0.253408]
[1743973255285,0.00078949,78925.0,78924.0,0.40352182]
[1743973255561,0.00073949,78925.0,78924.0,0.49207691]
[1743973255721,0.00073949,78925.0,78924.0,0.54177691]
[1743973256345,0.00073949,78925.0,78924.0,0.88177691]
[1743973256559,0.00073949,78925.0,78924.0,0.93237691]
[1743973256765,0.0003346,78931.0,78930.0,0.012669]
[1743973256937,0.0001675,78940.0,78939.0,0.59336]
[1743973257120,0.00030396,78940.0,78939.0,0.74347182]
[1743973257958,0.00030396,78940.0,78939.0,0.74847182]
[1743973258294,0.00030396,78940.0,78939.0,0.74347182]
[1743973258745,0.00030396,78940.0,78939.0,0.74847182]
[1743973258944,0.00030396,78940.0,78939.0,0.83702691]
[1743973259580,0.00020063,78940.0,78939.0,0.83702691]
[1743973259780,0.00020063,78940.0,78939.0,0.84102691]
[1743973260241,0.00020063,78940.0,78939.0,0.71812394]
[1743973260443,0.00020063,78940.0,78939.0,0.009]
[1743973260795,0.12627106,78940.0,78939.0,0.009]
[1743973260993,0.12627111,78940.0,78939.0,0.004]
[1743973261244,0.12627111,78940.0,78939.0,0.005]
[1743973261623,0.12627111,78940.0,78920.0,0.26609]
[1743973261865,0.12290297,78939.0,78932.0,0.253382]
[1743973262067,0.12290297,78939.0,78931.0,0.012669]
[1743973262349,0.00316737,78938.0,78920.0,0.012671]
[1743973262491,0.12290297,78937.0,78919.0,0.266094]
[1743973262685,0.12290297,78937.0,78917.0,1.108871]
[1743973262686,0.00316756,78937.0,78935.0,0.253373]
[1743973262899,0.00020063,78940.0,78939.0,0.012668]
[1743973263256,0.00020063,78940.0,78939.0,0.01454085]
[1743973263411,0.00020063,78940.0,78932.0,0.26605]
[1743973263629,0.00020063,78940.0,78910.0,0.253452]
[1743973263630,0.27607004,78939.0,78910.0,0.253452]
[1743973263835,0.27290297,78939.0,78913.0,0.012672]
[1743973264040,0.15,78927.0,78900.0,4e-05]
[1743973264244,0.12607116,78926.0,78903.0,0.253475]
[1743973264448,0.12607116,78926.0,78920.0,0.012671]
[1743973264783,0.00316783,78925.0,78923.0,0.253409]
[1743973265014,0.00020063,78940.0,78938.0,0.253362]
[1743973265185,0.00020063,78940.0,78920.0,0.012671]
[1743973265186,0.12290297,78939.0,78920.0,0.012671]
[1743973265391,0.00316748,78938.0,78926.0,0.01454085]
[1743973265568,0.00316748,78938.0,78932.0,0.01454085]
[1743973265771,0.00336777,78940.0,78934.0,0.01454085]
[1743973265975,0.00336777,78940.0,78934.0,0.02720885]
[1743973266171,0.00536777,78940.0,78934.0,0.01454085]
[1743973266357,0.00220063,78940.0,78939.0,0.28056885]
[1743973266761,0.00220063,78940.0,78939.0,0.36436724]
[1743973267174,0.00220063,78940.0,78939.0,0.28056885]
[1743973267391,0.00020063,78940.0,78939.0,0.28056885]
[1743973267591,0.00020063,78940.0,78939.0,0.40347182]
[1743973267805,0.00220063,78940.0,78939.0,0.74347182]
[1743973268067,0.000335,78953.0,78939.0,0.47744382]
[1743973268276,0.000335,78953.0,78948.0,0.62053785]
[1743973268479,0.000335,78953.0,78948.0,0.74344082]
[1743973269042,0.000335,78953.0,78948.0,0.01454085]
[1743973269225,0.000335,78953.0,78948.0,0.26787185]
[1743973269405,0.000335,78953.0,78940.0,0.253356]
[1743973269609,0.000335,78953.0,78948.0,0.265997]
[1743973269851,0.000335,78953.0,78948.0,0.28053785]
[1743973270050,0.000335,78953.0,78948.0,0.01454085]
[1743973270223,0.000335,78953.0,78944.0,0.012667]
[1743973270431,0.000335,78953.0,78944.0,0.26601]
[1743973270909,0.000335,78953.0,78943.0,0.01454085]
[1743973271104,0.12290297,78948.0,78939.0,0.004]
[1743973271354,0.00350229,78949.0,78943.0,0.266009]
[1743973271565,0.00350229,78949.0,78948.0,0.005]
[1743973271813,0.0003352,78949.0,78940.0,0.012667]
[1743973272009,0.00350195,78949.0,78948.0,0.005]
[1743973272185,0.61640526,78949.0,78948.0,0.005]
[1743973272383,0.15,78934.0,78927.0,0.00013646]
[1743973272586,0.35887073,78933.0,78927.0,0.00013646]
[1743973272788,0.34,78928.0,78927.0,0.00013646]
[1743973272987,0.49070297,78928.0,78927.0,0.00013646]
[1743973273389,0.15,78908.0,78900.0,4e-05]
[1743973273574,0.12607187,78907.0,78900.0,4e-05]
[1743973274579,0.0031689,78907.0,78901.0,0.012674]
[1743973274782,0.21776,78907.0,78902.0,0.01454085]
[1743973274981,0.21776,78907.0,78905.0,0.02721385]
[1743973275299,0.21776,78907.0,78906.0,0.28067985]
[1743973275698,0.21776,78926.0,78918.0,0.012671]
[1743973275902,0.15,78917.0,78905.0,0.00045509]
[1743973276125,0.00316847,78924.0,78912.0,0.012672]
[1743973276359,0.12290297,78924.0,78917.0,0.012671]
[1743973276555,0.21776,78931.0,78922.0,0.253414]
[1743973276758,0.12607065,78930.0,78923.0,0.02806248]
[1743973277057,0.15,78925.0,78906.0,0.01454085]
[1743973277194,0.12607115,78924.0,78905.0,0.00645509]
[1743973277401,0.15,78916.0,78905.0,0.00645509]
[1743973277618,0.15,78908.0,78905.0,0.00345509]
[1743973277839,0.34379177,78907.0,78905.0,0.00345509]
[1743973278072,0.00316879,78906.0,78905.0,0.00345509]
[1743973278311,0.12607176,78906.0,78905.0,0.00345509]
[1743973278762,0.12290297,78906.0,78905.0,0.00345509]
[1743973278965,0.12290297,78906.0,78905.0,0.00045509]
[1743973279219,0.21772,78907.0,78905.0,0.00145509]
[1743973279364,0.21772,78907.0,78906.0,0.01454085]
[1743973279776,0.21772,78907.0,78905.0,0.00045509]
[1743973279982,0.21772,78907.0,78906.0,0.28067985]
[1743973280360,0.21768,78926.0,78915.0,0.01454085]
[1743973280586,0.00316775,78925.0,78917.0,0.01454085]
[1743973280943,0.00316775,78925.0,78906.0,0.03065219]
[1743973281191,0.12290297,78924.0,78906.0,0.01454085]
[1743973281438,0.00316811,78923.0,78906.0,0.01454085]
[1743973281656,0.00316811,78923.0,78905.0,0.00045509]
[1743973281657,0.12290297,78922.0,78905.0,0.00045509]
[1743973281766,0.00316811,78921.0,78905.0,0.00045509]
[1743973281969,0.00516811,78926.0,78916.0,0.012671]
[1743973282237,0.12290297,78925.0,78914.0,0.01454085]
[1743973282434,0.005,78947.0,78914.0,0.01454085]
[1743973282435,0.00316795,78935.0,78931.0,0.253384]
[1743973282663,0.12290297,78948.0,78939.0,0.012668]
[1743973282788,0.0003352,78949.0,78939.0,0.012668]
[1743973282789,0.0003352,78949.0,78946.0,0.253337]
[1743973282990,0.0003352,78949.0,78948.0,0.012666]
[1743973283188,0.0003352,78949.0,78948.0,0.01454085]
[1743973283393,0.12640456,78949.0,78924.0,0.0451]
[1743973283573,0.12290297,78948.0,78932.0,0.012669]
[1743973283800,0.0031672,78947.0,78929.0,0.02720985]
[1743973284004,0.12290297,78946.0,78929.0,0.02720985]
[1743973284231,0.15,78940.0,78924.0,0.0451]
[1743973284452,0.12607046,78939.0,78920.0,0.253419]
[1743973284625,0.12607046,78939.0,78922.0,0.01267]
[1743973284967,0.21764,78948.0,78941.0,0.012667]
[1743973285167,0.21764,78948.0,78935.0,0.012668]
[1743973285168,0.00316681,78947.0,78946.0,0.003]
[1743973285367,0.21764,78948.0,78946.0,0.003]
[1743973285570,0.00316676,78947.0,78946.0,0.003]
[1743973285769,0.00316676,78947.0,78937.0,0.01454085]
[1743973286007,0.00316676,78947.0,78939.0,0.01454085]
[1743973286210,0.21764,78948.0,78947.0,0.266]
[1743973286413,0.21764,78948.0,78947.0,0.01454085]
[1743973286624,0.00047159,78949.0,78934.0,0.253374]
[1743973286625,0.00047159,78949.0,78940.0,0.01454085]
[1743973286796,0.00047159,78949.0,78946.0,0.002]
[1743973286999,0.00363831,78949.0,78946.0,0.002]
[1743973287358,0.12290297,78948.0,78946.0,0.004]
[1743973287560,0.00047159,78949.0,78948.0,0.012666]
[1743973287787,0.00047159,78949.0,78948.0,0.02720685]
[1743973287988,0.00047159,78949.0,78948.0,0.01454085]
[1743973288150,0.00047159,78949.0,78948.0,0.06939734]
[1743973288365,0.00047159,78949.0,78948.0,0.08206334]
[1743973289123,0.00047159,78949.0,78948.0,0.01554085]
[1743973289342,0.00047159,78949.0,78948.0,0.001]
[1743973289480,0.12654107,78949.0,78948.0,0.001]
[1743973289686,0.0036381,78949.0,78946.0,0.002]
[1743973289905,0.00047159,78949.0,78946.0,0.002]
[1743973290112,0.00047159,78949.0,78948.0,0.001]
[1743973290913,0.12654134,78949.0,78948.0,0.001]
[1743973291342,0.12654134,78949.0,78938.0,0.253363]
[1743973291509,0.00047159,78949.0,78947.0,0.01454085]
[1743973291711,0.00047159,78949.0,78948.0,0.01654085]
[1743973292094,0.00047159,78949.0,78948.0,0.01454085]
[1743973292296,0.00047159,78949.0,78948.0,0.002]
[1743973292522,0.12654122,78949.0,78948.0,0.002]
[1743973292718,0.15,78947.0,78910.0,1.09556]
[1743973292947,0.14188544,78949.0,78910.0,1.09556]
[1743973292948,0.15,78929.0,78910.0,1.09556]
[1743973293150,0.15,78919.0,78910.0,1.09556]
[1743973293393,0.00316825,78927.0,78910.0,1.09556]
[1743973293602,0.12290297,78926.0,78910.0,1.09556]
[1743973293865,0.00316794,78925.0,78911.0,0.01454085]
[1743973294090,0.00316794,78925.0,78915.0,0.012671]
[1743973294257,0.2174,78928.0,78919.0,0.012671]
[1743973294489,0.00316738,78927.0,78912.0,0.01454085]
[1743973294816,0.00316738,78927.0,78926.0,0.02721085]
[1743973295079,0.00316733,78942.0,78930.0,0.01454085]
[1743973295267,0.00350204,78949.0,78930.0,0.02720985]
[1743973295421,0.00013636,78943.0,78930.0,0.01454085]
[1743973295623,0.00013636,78943.0,78933.0,0.01454085]
[1743973295838,0.00013636,78943.0,78942.0,0.266017]
[1743973296052,0.00013636,78943.0,78942.0,0.28055785]
[1743973296440,0.00013636,78943.0,78942.0,0.62055785]
[1743973296649,0.00013636,78943.0,78942.0,0.74346082]
[1743973296850,0.0003352,78949.0,78948.0,0.605997]
[1743973297058,8e-07,78953.0,78952.0,0.62052385]
[1743973297267,8e-07,78953.0,78952.0,0.74342682]
[1743973297463,8e-07,78953.0,78952.0,0.76701358]
[1743973297663,0.002,78959.0,78954.0,0.012665]
[1743973297851,0.002,78959.0,78954.0,0.62808685]
[1743973298895,0.002,78959.0,78954.0,0.63708685]
[1743973299252,0.002,78989.0,78971.0,0.62045985]
[1743973299455,0.00030361,78972.0,78971.0,0.79326282]
[1743973299655,0.00030361,78972.0,78971.0,0.92429804]
[1743973299935,0.002,78989.0,78978.0,0.62043685]
[1743973300171,0.002,78989.0,78978.0,0.74333982]
[1743973300347,0.002,78989.0,78988.0,0.605863]
[1743973300552,0.002,78989.0,78988.0,0.74330682]
[1743973300753,0.002,78989.0,78988.0,0.81259809]
[1743973300948,0.002,78989.0,78988.0,0.67509512]
[1743973301275,0.002,78989.0,78988.0,0.33509512]
[1743973301471,0.002,78989.0,78988.0,0.34775512]
[1743973301667,0.002,78989.0,78988.0,0.35275512]
[1743973301860,0.002,78989.0,78988.0,0.47565809]
[1743973302062,0.002,78989.0,78988.0,0.49419036]
[1743973302263,0.002,78989.0,78988.0,0.49919036]
[1743973302426,0.002,78989.0,78988.0,0.50319036]
[1743973302855,0.002,78989.0,78988.0,0.55359036]
[1743973303092,0.21716,79018.0,79016.0,0.012655]
[1743973303289,0.21716,79018.0,79001.0,0.012658]
[1743973303290,0.00045456,79017.0,79001.0,0.012658]
[1743973303514,0.00045456,79017.0,79008.0,0.01454085]
[1743973303690,0.34045456,79017.0,79008.0,0.28033285]
[1743973304042,0.34045456,79017.0,79007.0,0.01454085]
[1743973304243,0.34045456,79017.0,79007.0,0.02719785]
[1743973304718,0.34045456,79017.0,79011.0,0.01454085]
[1743973305163,0.00045456,79017.0,79016.0,0.02719585]
[1743973305428,0.00045456,79017.0,79016.0,0.02972357]
[1743973305676,0.00045456,79017.0,79016.0,0.02719585]
[1743973305917,0.00045456,79017.0,79016.0,0.15009882]
[1743973306167,0.00045456,79017.0,79016.0,0.19549882]
[1743973306417,0.00045456,79017.0,79016.0,0.19802583]
[1743973306664,8.6e-07,79019.0,79018.0,0.02719585]
[1743973306874,0.00013711,79019.0,79018.0,0.15262493]
[1743973307142,0.0001673,79028.0,79025.0,0.265738]
[1743973307347,0.0001673,79028.0,79025.0,1.49790182]
[1743973307977,0.0001673,79028.0,79025.0,1.13266452]
[1743973308150,6.381e-05,79026.0,79025.0,1.13266452]
[1743973308378,6.381e-05,79026.0,79025.0,1.12691485]
[1743973308591,6.381e-05,79026.0,79025.0,1.15006606]
[1743973308785,6.381e-05,79026.0,79025.0,1.11326085]
[1743973309273,6.381e-05,79026.0,79025.0,1.10926085]
[1743973309702,6.381e-05,79026.0,79025.0,1.12491485]
[1743973310110,6.381e-05,79026.0,79025.0,1.12991485]
[1743973310323,6.381e-05,79026.0,79025.0,1.12491485]
[1743973310546,0.33969839,79043.0,79032.0,0.265714]
[1743973310759,0.15,79062.0,79040.0,0.012651]
[1743973310948,0.15,79062.0,79041.0,0.253031]
[1743973310949,0.00013618,79043.0,79041.0,0.253031]
[1743973311152,0.00013618,79043.0,79042.0,0.10563345]
[1743973311695,0.00013618,79043.0,79042.0,0.10815894]
[1743973312100,0.00013618,79043.0,79042.0,0.0784416]
[1743973312299,0.00013618,79043.0,79040.0,0.005]
[1743973312300,0.00013618,79043.0,79040.0,0.003]
[1743973312724,0.00013618,79043.0,79042.0,0.001]
[1743973313345,0.00316269,79048.0,79042.0,0.001]
[1743973313545,0.15,79055.0,79042.0,0.001]
[1743973313546,0.21684,79045.0,79042.0,0.003]
[1743973313751,0.12606601,79044.0,79042.0,0.001]
[1743973313924,0.27606601,79044.0,79042.0,0.001]
[1743973314126,0.2873166,79043.0,79042.0,0.005]
[1743973314329,0.15,79035.0,79006.0,0.01454085]
[1743973314530,0.0031637,79034.0,79008.0,0.012656]
[1743973314727,0.12290297,79034.0,79012.0,0.012656]
[1743973314929,0.00316354,79033.0,79014.0,0.26765685]
[1743973315131,0.00316354,79042.0,79020.0,0.01454085]
[1743973315393,0.34,79040.0,79019.0,0.012655]
[1743973315577,0.00316322,79039.0,79023.0,0.01454085]
[1743973315746,0.00316322,79039.0,79023.0,0.02719485]
[1743973315952,0.34,79038.0,79025.0,0.01454085]
[1743973316154,0.34,79041.0,79032.0,0.012653]
[1743973316355,0.34,79041.0,79027.0,0.012653]
[1743973316596,0.34,79041.0,79034.0,0.012652]
[1743973316734,0.34,79041.0,79036.0,0.012652]
[1743973317152,0.1972,79062.0,79036.0,0.012652]
[1743973317153,0.15,79062.0,79043.0,0.012651]
[1743973317355,0.15,79062.0,79038.0,0.0498]
[1743973317356,0.21672,79057.0,79038.0,0.0498]
[1743973317735,0.34,79055.0,79040.0,0.265685]
[1743973318012,0.34,79055.0,79041.0,0.012651]
[1743973318187,0.00316252,79054.0,79035.0,0.012652]
[1743973318388,0.00316252,79054.0,79043.0,0.003]
[1743973318991,0.34,79056.0,79043.0,0.003]
[1743973319190,0.12606549,79055.0,79043.0,0.003]
[1743973319663,0.12606549,79055.0,79036.0,0.265699]
[1743973319862,0.00316252,79055.0,79044.0,0.012651]
[1743973320058,0.34,79056.0,79041.0,0.012651]
[1743973320304,0.34,79056.0,79031.0,0.301562]
[1743973320305,0.12606549,79055.0,79031.0,0.0485]
[1743973320455,0.12606549,79055.0,79001.0,0.027]
[1743973320456,0.15,79040.0,79013.0,0.0287431]
[1743973320677,0.34,79038.0,79013.0,0.0287431]
[1743973320880,0.057749,79056.0,79028.0,0.012653]
[1743973320881,0.15,79046.0,79028.0,0.012653]
[1743973321101,0.15,79046.0,79044.0,0.003]
[1743973321102,0.46606621,79045.0,79044.0,0.003]
[1743973321322,0.46290297,79045.0,79027.0,0.012653]
[1743973321525,0.00316324,79044.0,79022.0,0.253091]
[1743973321736,0.34,79042.0,79018.0,0.012655]
[1743973321918,0.34,79040.0,79025.0,0.253083]
[1743973322120,0.46290297,79040.0,79025.0,0.253083]
[1743973322316,0.46290297,79040.0,79025.0,0.265737]
[1743973322518,0.46290297,79040.0,79029.0,0.25307]
[1743973322715,0.34,79038.0,79035.0,0.004]
[1743973322881,0.46290297,79038.0,79032.0,0.00013618]
[1743973323084,0.49,79036.0,79032.0,0.00013618]
[1743973323312,0.49,79036.0,79032.0,0.00313618]
[1743973323313,0.34,79034.0,79032.0,0.00313618]
[1743973323509,0.46606663,79033.0,79032.0,0.00413618]
[1743973323729,0.46290297,79033.0,79032.0,0.00113618]
[1743973324283,0.34,79033.0,79032.0,0.00113618]
[1743973324495,0.34,79033.0,79032.0,0.0392092]
[1743973324855,0.34,79033.0,79032.0,0.0412092]
[1743973324856,0.24500724,79033.0,79032.0,0.0412092]
[1743973325056,0.15,79060.0,79032.0,0.0412092]
[1743973325057,0.15,79060.0,79051.0,0.01265]
[1743973325265,0.21656,79059.0,79056.0,0.252982]
[1743973325396,0.7,79057.0,79032.0,0.0285562]
[1743973325607,0.1260654,79056.0,79038.0,0.012652]
[1743973325803,0.15,79051.0,79026.0,0.25308]
[1743973326027,0.12606608,79050.0,79030.0,0.253068]
[1743973326273,0.15,79042.0,79032.0,0.001]
[1743973326421,0.15,79033.0,79032.0,0.001]
[1743973326635,0.15,79033.0,79032.0,0.00013618]
[1743973326636,0.48946297,79033.0,79032.0,0.00013618]
[1743973326844,0.82946297,79033.0,79032.0,0.00213618]
[1743973327192,0.82946297,79033.0,79032.0,0.00013618]
[1743973327555,0.82946297,79033.0,79032.0,0.00413618]
[1743973327769,0.605727,79028.0,79027.0,0.004]
[1743973327930,0.34,79004.0,79003.0,0.000334]
[1743973328131,0.67942297,79004.0,79003.0,0.00078856]
[1743973328534,0.55652,79004.0,79003.0,0.00078856]
[1743973328731,0.21652,79004.0,79003.0,0.00078856]
[1743973329904,0.21652,79004.0,79003.0,0.04583852]
[1743973330075,0.21652,79004.0,79003.0,0.04783852]
[1743973330277,0.34,79018.0,79013.0,0.012656]
[1743973330855,0.21648,79024.0,79021.0,0.253096]
[1743973331079,0.21648,79026.0,79019.0,0.012655]
[1743973331281,0.21648,79041.0,79028.0,0.253074]
[1743973331490,0.0031633,79040.0,79029.0,0.265724]
[1743973331719,0.0031633,79040.0,79027.0,0.012653]
[1743973331942,0.21648,79041.0,79039.0,0.012651]
[1743973332074,0.21648,79041.0,79040.0,0.265687]
[1743973332275,0.21648,79041.0,79040.0,0.3453942]
[1743973332470,0.01282708,79057.0,79051.0,0.265648]
[1743973332674,0.7,79052.0,79051.0,0.265648]
[1743973332884,0.7,79052.0,79040.0,0.3951942]
[1743973333087,0.00013615,79058.0,79045.0,0.012651]
[1743973333386,0.14456459,79057.0,79040.0,0.0498]
[1743973333585,0.00316258,79056.0,79041.0,0.253032]
[1743973333827,0.34,79054.0,79041.0,0.253032]
[1743973334029,0.00964703,79058.0,79049.0,0.01265]
[1743973334237,0.00964703,79058.0,79056.0,0.252985]
[1743973334435,0.00013615,79058.0,79056.0,0.012649]
[1743973334611,0.00013615,79058.0,79056.0,0.0683079]
[1743973334813,0.00013615,79058.0,79057.0,0.265631]
[1743973334988,0.00013615,79058.0,79057.0,0.43633397]
[1743973335194,0.00013615,79058.0,79057.0,0.49647482]
[1743973335395,0.00013615,79058.0,79057.0,0.53579989]
[1743973335650,8e-05,79072.0,79071.0,0.265583]
[1743973335908,8e-05,79072.0,79071.0,0.28012385]
[1743973336209,8e-05,79072.0,79071.0,0.40302682]
[1743973336617,8e-05,79072.0,79071.0,0.42660489]
[1743973336844,0.002,79079.0,79078.0,0.265559]
[1743973336991,0.002,79079.0,79078.0,0.13744382]
[1743973337199,0.002,79079.0,79072.0,0.060446]
[1743973337200,0.002,79079.0,79074.0,0.252927]
[1743973337397,0.002,79079.0,79072.0,0.0478]
[1743973337599,0.002,79079.0,79071.0,0.016646]
[1743973337803,0.002,79079.0,79078.0,0.012645]
[1743973337999,0.002,79079.0,79078.0,0.07379836]
[1743973338204,0.002,79079.0,79078.0,0.19670133]
[1743973338445,0.002,79079.0,79078.0,0.05863044]
[1743973338651,0.002,79079.0,79078.0,0.004]
[1743973339207,0.002,79079.0,79072.0,0.265577]
[1743973339421,0.002,79079.0,79078.0,0.003]
[1743973339843,0.00189677,79079.0,79072.0,0.252931]
[1743973340008,0.00189677,79079.0,79078.0,0.012645]
[1743973340209,0.00189677,79079.0,79078.0,0.03670889]
[1743973340498,0.00189677,79079.0,79078.0,0.03270889]
[1743973340700,0.00189677,79079.0,79078.0,0.15561142]
[1743973340902,0.00189677,79079.0,79078.0,0.15708882]
[1743973341105,0.00189677,79079.0,79078.0,0.227778]
[1743973341513,0.00189677,79079.0,79078.0,0.08733418]
[1743973341734,0.00189677,79079.0,79052.0,0.22124]
[1743973341735,0.00189677,79079.0,79064.0,0.012647]
[1743973341934,0.00189677,79079.0,79074.0,0.012646]
[1743973342138,0.00189677,79079.0,79076.0,0.252921]
[1743973342340,0.00189677,79079.0,79078.0,0.28009985]
[1743973342474,0.00189677,79079.0,79078.0,0.37533129]
[1743973342681,0.00189677,79079.0,79078.0,0.49823426]
[1743973342878,0.00189677,79079.0,79078.0,0.50523426]
[1743973343084,0.00189677,79079.0,79078.0,0.50123426]
[1743973343370,0.00189677,79079.0,79078.0,0.52471748]
[1743973343684,0.00189677,79079.0,79078.0,0.57381748]
[1743973343929,0.00189677,79079.0,79078.0,0.55033426]
[1743973344129,0.00189677,79079.0,79078.0,0.07064085]
[1743973344472,0.00189677,79079.0,79078.0,0.33619985]
[1743973344646,0.00189677,79079.0,79078.0,0.33319985]
[1743973344871,0.00189677,79079.0,79078.0,0.45910282]
[1743973344990,0.00189677,79079.0,79078.0,0.45510282]
[1743973345191,0.00189677,79079.0,79078.0,0.5567566]
[1743973345562,0.00189677,79079.0,79078.0,0.57721803]
[1743973345784,0.000167,79089.0,79086.0,0.265533]
[1743973346060,0.00030315,79087.0,79086.0,0.40297682]
[1743973346266,0.00030315,79087.0,79086.0,0.01454085]
[1743973346481,0.00030315,79087.0,79086.0,0.17769431]
[1743973346851,0.00030315,79087.0,79086.0,0.05479134]
[1743973347059,0.00030315,79087.0,79086.0,0.07824377]
[1743973347270,0.00030315,79087.0,79086.0,0.20514674]
[1743973347463,0.00030315,79087.0,79086.0,0.2549685]
[1743973347672,0.00030315,79087.0,79086.0,0.22899431]
[1743973347871,0.00030315,79087.0,79086.0,0.23151541]
[1743973348210,0.00030315,79087.0,79086.0,0.22799431]
[1743973348571,0.00030315,79087.0,79086.0,0.22499431]
[1743973348773,0.00030315,79087.0,79086.0,0.22799431]
[1743973349408,0.00030315,79087.0,79086.0,0.23199431]
[1743973349805,0.00030315,79087.0,79086.0,0.22799431]
[1743973350006,0.00030315,79087.0,79086.0,0.23199431]
[1743973350681,0.00030315,79087.0,79086.0,0.019644]
[1743973350882,0.00030315,79087.0,79086.0,0.012644]
[1743973351086,0.00030315,79087.0,79086.0,0.016644]
[1743973351323,0.00030315,79087.0,79086.0,0.019644]
[1743973351525,0.00030315,79087.0,79086.0,0.15708782]
[1743973351976,0.00030315,79087.0,79086.0,0.15408782]
[1743973352753,0.00030315,79087.0,79086.0,0.15260894]
[1743973352908,0.00030315,79087.0,79086.0,0.15560894]
[1743973353331,0.00030315,79087.0,79086.0,0.15308782]
[1743973353532,0.00030315,79087.0,79086.0,0.15960851]
[1743973353979,0.00030315,79087.0,79086.0,0.15260851]
[1743973354152,0.00030315,79087.0,79086.0,0.15408782]
[1743973354380,0.00030315,79087.0,79086.0,0.15708782]
[1743973354968,0.00030315,79087.0,79086.0,0.016644]
[1743973355171,0.00030315,79087.0,79086.0,0.004]
[1743973355378,0.00030315,79087.0,79086.0,0.003]
[1743973355791,0.00030315,79087.0,79086.0,0.007]
[1743973355990,0.00030315,79087.0,79086.0,0.015644]
[1743973356456,0.00030315,79087.0,79086.0,0.016644]
[1743973356659,0.00030315,79087.0,79086.0,0.012644]
[1743973357033,0.00030315,79087.0,79086.0,0.15661001]
[1743973357216,0.00030315,79087.0,79086.0,0.2546523]
[1743973357416,0.00030315,79087.0,79086.0,0.25213011]
[1743973358027,0.00030315,79087.0,79086.0,0.25513011]
[1743973358481,0.00030315,79087.0,79086.0,0.25113011]
[1743973358681,0.00030315,79087.0,79086.0,0.01754085]
[1743973358800,0.00030315,79087.0,79086.0,0.28707385]
[1743973359765,0.00030315,79087.0,79086.0,0.40997682]